Cogmind - Beta 10.2 @@@ ROGUE MODE // 2022.02.27 @ 17:09:45 Player: Lumi Result: Destroyed by S-27 Virus with Autogun Performance ------------- Evolutions (6) 3000 Regions Visited (16) 3200 Robots Destroyed (126) 630 Value Destroyed (4994) 4994 Prototype IDs (24) 480 Alien Tech Used (0) 0 Bonus (1515) 1515 TOTAL SCORE: 13819 Bonus ------- High Alert Combat Kills 226 Follower Combat Kills 357 Entered Garrisons 200 Used RIF Installer 500 Aligned with FarCom 300 Friendly Fire -68 Cogmind --------- Core Integrity 0/1150 Matter 8/300 Energy 87/150 System Corruption 6% Temperature Cool (0) Movement Flying (40) Location -4/Factory Parts ------- > --- POWER (2) -------- Light Angular Momentum Engine > --- PROPULSION (5) --- Impulse Thruster > --- UTILITY (8) ------ Advanced System Shield > --- WEAPON (4) ------- (None) > --- INVENTORY (4) ---- Impulse Thruster Power Maul Peak State ------------ > --- POWER ------------ Angular Momentum Engine Light Angular Momentum Engine > --- PROPULSION ------- Impulse Thruster Impulse Thruster Impulse Thruster Impulse Thruster Impulse Thruster > --- UTILITY ---------- Advanced Heat Sink Reaction Control System Hardened Light Armor Plating Makeshift Hacking Suite Improved Hacking Suite Improved Hacking Suite Advanced Hacking Suite Advanced System Shield > --- WEAPON ----------- Tesla Rifle Improved Spread Laser KE Penetrator Power Maul > --- INVENTORY -------- Impulse Thruster Impulse Thruster Heavy Laser Force Rifle [Rating: 108] Favorites ----------- Power Light Nuclear Core Engine Light Angular Momentum Engine Power Core Light Nuclear Core Propulsion Light Treads Treads Light Treads Leg Carbon-fiber Leg Wheel Compact Wheel Hover Unit Antigrav System Flight Unit Impulse Thruster Utility High-capacity Storage Unit Device Improved Heat Sink Storage High-capacity Storage Unit Processor Advanced Signal Interpreter Hackware Hacking Suite Protection Hardened Light Armor Plating Weapon Katana Energy Gun Particle Gun Energy Cannon Heavy Ion Cannon Ballistic Gun Gauss Rifle Ballistic Cannon Bore Cannon Launcher Improved Proton Missile Launcher Special Weapon Plasma Cutter Impact Weapon Power Maul Slashing Weapon Katana Special Melee Weapon Improved Datajack Build | -11 -10 -10 -9 -9 -9 -8 -8 -8 -7 -7 -7 -6 -5 -5 -5 -4 ------- Run | Scr Mat Min Mat Min Exi Min Mat Gar Fac Low Low Fac Fac Upp Upp Fac Slots Evolved 12 | . . . 2 . . . 2 . 2 . . 2 2 . . 2 Power 1 | . . . . . . . . . . . . . 1 . . . Propulsion 3 | . . . 1 . . . 1 . . . . . . . . 1 Utility 6 | . . . 1 . . . 1 . . . . 2 1 . . 1 Weapon 2 | . . . . . . . . . 2 . . . . . . . Parts Attached 264 | 7 . 1 9 9 . 6 13 28 17 16 1 40 35 24 16 42 Power 25 | 1 . . 1 . . . . 3 2 2 . 4 4 1 2 5 Engine 13 | 1 . . 1 . . . . 1 . . . 3 1 1 2 3 Core 12 | . . . . . . . . 2 2 2 . 1 3 . . 2 Reactor . | . . . . . . . . . . . . . . . . . Propulsion 97 | 2 . . 4 5 . 1 3 10 5 6 . 15 12 15 5 14 Treads 21 | . . . . . . . . 6 4 3 . . 3 2 3 . Leg 35 | . . . 1 . . . . 3 1 2 . 11 7 8 1 1 Wheel 18 | 2 . . 3 3 . 1 3 1 . . . 4 . . . 1 Hover 5 | . . . . . . . . . . . . . 2 3 . . Flight 18 | . . . . 2 . . . . . 1 . . . 2 1 12 Utility 58 | 2 . 1 2 2 . 1 2 2 1 3 1 10 8 5 4 14 Device 12 | . . . . 1 . . . . . . . 3 3 1 1 3 Storage 9 | 2 . 1 1 1 . . . . . . . 1 . 2 . 1 Processor 11 | . . . 1 . . 1 . . . 2 . 3 2 1 . 1 Hackware 16 | . . . . . . . 2 1 1 1 . 2 2 1 . 6 Protection 10 | . . . . . . . . 1 . . 1 1 1 . 3 3 Artifact . | . . . . . . . . . . . . . . . . . Weapon 84 | 2 . . 2 2 . 4 8 13 9 5 . 11 11 3 5 9 Energy Gun 28 | 2 . . 1 1 . . 4 7 3 . . 2 3 . 1 4 Energy Cannon 9 | . . . . . . . 2 . 3 . . . 2 . 1 1 Ballistic Gun 16 | . . . . 1 . 3 1 5 1 1 . . 1 . 2 1 Ballistic Cannon 2 | . . . . . . . . . . . . . . . 1 1 Launcher 2 | . . . 1 . . . . . . . . 1 . . . . Special Weapon 3 | . . . . . . 1 1 . . . . . 1 . . . Impact Weapon 6 | . . . . . . . . 1 . . . 1 . 2 . 2 Slashing Weapon 15 | . . . . . . . . . . 3 . 7 4 1 . . Piercing Weapon . | . . . . . . . . . . . . . . . . . Special Melee Weapon 3 | . . . . . . . . . 2 1 . . . . . . Unidentified Prototypes 1 | . . . . . . . . . . . . 1 . . . . Parts Lost 138 | . . . 7 4 . 3 4 19 4 5 7 15 25 14 7 24 Power 13 | . . . 1 . . . . 2 . . 1 3 2 1 . 3 Propulsion 62 | . . . 4 2 . 1 1 7 2 3 4 4 11 9 3 11 Utility 26 | . . . . . . . . 1 . . 1 6 6 3 1 8 Weapon 37 | . . . 2 2 . 2 3 9 2 2 1 2 6 1 3 2 Highest Loss Streak 18 | . . . 7 3 . 2 3 11 4 3 7 8 18 6 6 16 Average Slot Usage (%) 89 | . 100 100 93 93 100 99 98 98 97 88 87 89 86 70 89 78 Engine 4 | . 14 14 11 11 11 11 9 2 . . . 3 2 . 7 7 Core 3 | . . . . . . . . 6 7 7 5 . 5 5 1 . Treads 9 | . . . . . . . . 22 29 12 5 . 1 1 12 2 Leg 7 | . . . 2 . . . . 3 . 11 17 20 16 13 4 1 Wheel 7 | . 28 28 24 27 33 32 35 9 . . . 4 . . . . Flight 2 | . . . . 2 . . . . . 1 . . . . 1 18 Device 3 | . . . . 7 11 11 . . . . . 1 4 5 8 9 Storage 8 | . 28 28 22 14 11 11 9 9 7 7 6 5 3 4 5 1 Processor 7 | . . . 11 11 11 11 9 9 4 4 7 15 11 6 1 1 Hackware 9 | . . . . . . . 17 14 18 17 13 11 10 1 5 11 Protection 1 | . . . . . . . . 3 . . . . 1 . 10 7 Energy Gun 5 | . 28 28 18 7 11 7 12 7 5 . . 1 1 . . 5 Energy Cannon 1 | . . . . . . . . . 7 7 . . . . 3 1 Ballistic Gun 5 | . . . . 10 11 13 3 10 9 7 5 . . . 6 3 Slashing Weapon 6 | . . . . . . . . . . 6 21 16 13 21 3 . Naked Turns . | . . . . . . . . . . . . . . . . . Heaviest Build 100 | 15 15 19 50 50 42 49 45 47 56 56 51 58 71 71 100 100 Greatest Support 80 | 26 26 26 36 42 42 44 54 80 80 60 50 80 69 65 60 60 Greatest Overweight (x) 9 | 1 . . 4 4 . 1 . 4 2 9 3 1 3 3 5 1 Average Overweight (x) . | . . . 2 . . . . . . . . . . . 1 . Largest Inventory Capacity 16 | 8 8 10 16 16 12 12 12 12 12 12 12 12 12 12 12 12 Average Capacity 11 | 6 8 9 14 13 12 12 12 12 12 12 11 11 9 11 12 6 Most Carried 12 | 6 8 8 8 9 9 12 12 12 12 12 11 12 12 12 10 12 Average Carried 9 | 3 7 8 5 6 8 9 11 11 11 10 10 9 8 9 8 6 Final Capacity 16 | 8 8 10 16 12 12 12 12 12 12 12 4 12 4 12 12 4 Final Carried 12 | 6 8 8 3 8 9 12 12 12 11 11 4 12 4 9 9 2 Class Distribution -------------------- 55% | Scavenger-Mutant 11% | Hacker-Mutant 8% | Mutant 7% | Scavenger-Skirmisher 4% | Scavenger-Tank 3% | Scavenger-Sprinter Dominant Class ---------------- Mutant | -10/Materials Mutant | -10/Mines Mutant | -9/Materials Scavenger-Mutant | -9/Mines Scavenger-Mutant | -9/Exiles Scavenger-Skirmisher | -8/Mines Scavenger-Mutant | -8/Materials Scavenger-Mutant | -8/Garrison Scavenger-Skirmisher | -7/Factory Scavenger-Mutant | -7/Lower Caves Scavenger-Mutant | -7/Lower Caves Scavenger-Mutant | -6/Factory Scavenger-Mutant | -5/Factory Scavenger-Mutant | -5/Upper Caves Scavenger-Tank | -5/Upper Caves Scavenger-Sprinter | -4/Factory Resources | -11 -10 -10 -9 -9 -9 -8 -8 -8 -7 -7 -7 -6 -5 -5 -5 -4 ----------- Run | Scr Mat Min Mat Min Exi Min Mat Gar Fac Low Low Fac Fac Upp Upp Fac Matter Collected 2871 | 260 10 10 15 231 . 56 129 390 258 245 . 363 241 345 273 45 Remotely . | . . . . . . . . . . . . . . . . . Salvage Created 5773 | 205 44 . 95 239 . 11 215 693 565 297 . 1498 585 994 332 . Parts 277 | 13 10 . 2 28 . 4 13 33 35 9 . 65 26 24 15 . Haulers Intercepted 1 | . . . . . . . . . . . . 1 . . . . Recyclers Shooed 5 | 1 . . . 1 . . . . . . . 2 1 . . . Parts Field Recycled . | . . . . . . . . . . . . . . . . . Retrieved Matter . | . . . . . . . . . . . . . . . . . Parts Self-Destructed 26 | . . . . . . . . . . 9 . . . 13 4 . Prevented . | . . . . . . . . . . . . . . . . . Kills | -11 -10 -10 -9 -9 -9 -8 -8 -8 -7 -7 -7 -6 -5 -5 -5 -4 ------- Run | Scr Mat Min Mat Min Exi Min Mat Gar Fac Low Low Fac Fac Upp Upp Fac Combat Hostiles Destroyed 97 | . 3 . 3 7 . . 3 19 9 6 . 18 9 12 8 . Melee 39 | . . . . . . . . . . 1 . 18 6 12 2 . Guns 46 | . 3 . 1 5 . . 3 19 7 3 . . 2 . 3 . Cannons 8 | . . . . . . . . . 2 2 . . 1 . 3 . AOE 4 | . . . 2 2 . . . . . . . . . . . . Classes Destroyed 15 | 3 1 . 2 1 . . 1 3 2 . . 1 1 . . . Worker 5 | 2 . . . . . 1 . . 1 . . 1 . . . . Builder 6 | . . . . 3 . . . . . . . 3 . . . . Tunneler 8 | 5 . . . 3 . . . . . . . . . . . . Hauler 1 | . . . . . . . . . . . . 1 . . . . Recycler 5 | 1 . . . 1 . . . . 1 . . 2 . . . . Operator 1 | . . . . . . . . . 1 . . . . . . . Watcher 3 | . . . . . . . 2 . . . . 1 . . . . Swarmer 26 | . 3 . . 7 . . . 6 . 1 . . . 5 4 . Grunt 33 | . . . 2 . . . 3 5 2 4 . 10 2 5 . . Brawler 2 | . . . . . . . . . . . . . 1 1 . . Duelist 2 | . . . . . . . . 2 . . . . . . . . Sentry 15 | . . . 1 . . . . 4 3 1 . 3 2 1 . . Demolisher 1 | . . . . . . . . 1 . . . . . . . . Hunter 4 | . . . . . . . . 1 2 . . 1 . . . . Programmer 10 | . . . . . . . . . 2 . . 4 4 . . . Thug 1 | . . . . . . . . . . . . . . . 1 . Savage 3 | . . . . . . . . . . . . . . . 3 . Best Kill Streak 6 | 6 3 . 2 6 . 1 2 4 5 3 . 6 2 4 4 . Combat Bots Only 4 | . 3 . 2 4 . . 2 4 2 3 . 4 2 4 4 . Max Kills in Single Turn 2 | 1 2 . 1 2 . 1 1 2 2 1 . 1 1 1 2 . Gunslinging 1 | . 1 . . . . . . 1 . . . . . . . . Exploded 2 | . . . 1 2 . . . . . . . . . . . . Melee 1 | . . . . . . . . . . 1 . 1 1 1 1 . Uniques/NPCs Destroyed . | . . . . . . . . . . . . . . . . . Combat | -11 -10 -10 -9 -9 -9 -8 -8 -8 -7 -7 -7 -6 -5 -5 -5 -4 -------- Run | Scr Mat Min Mat Min Exi Min Mat Gar Fac Low Low Fac Fac Upp Upp Fac Damage Taken 15171 | . 95 . 469 295 . 168 340 1622 1262 679 764 2186 2742 1439 568 2542 Core 3166 | . 29 . 76 76 . 9 63 331 152 59 168 309 519 165 58 1152 Absorbed by Shields 134 | . . . . . . . . 13 . . . . . . . 121 Core Remaining (%) 58 | 100 . 88 . . . 59 . 28 . . 45 63 . . 25 . Volleys Fired 280 | 16 7 . 19 62 . 10 33 63 31 14 . 2 13 . 8 2 Largest 4 | 2 2 . 2 2 . 2 2 2 4 2 . 1 3 . 4 2 Hottest 231 | 100 100 . 100 76 . 76 126 128 231 93 . 50 226 . 203 108 Shots Fired 534 | 32 14 . 32 77 . 18 61 121 94 28 . 2 25 . 26 4 Gun 451 | 32 14 . 27 75 . 17 55 121 61 14 . 2 16 . 13 4 Cannon 71 | . . . . . . . 2 . 33 14 . . 9 . 13 . Launcher 7 | . . . 5 2 . . . . . . . . . . . . Special 5 | . . . . . . 1 4 . . . . . . . . . Kinetic 216 | . . . . 56 . 11 19 53 36 14 . . 5 . 20 2 Thermal 281 | 32 14 . 27 19 . 6 38 68 46 14 . . 9 . 6 2 Explosive 7 | . . . 5 2 . . . . . . . . . . . . Electromagnetic 25 | . . . . . . . . . 12 . . 2 11 . . . Robot Hit Streak 17 | 6 2 . 11 6 . 3 12 15 17 9 . . 9 . 3 1 Robot Miss Streak 6 | 2 2 . 2 6 . 3 2 4 2 3 . . 5 . 6 6 Penetration Max 1 | . . . . . . . . 1 . . . . . . . . Secondary Targets 6 | . 1 . 1 . . . . 4 . . . . . . . . Max Gunslinging Chain 1 | . 1 . 1 . . . . 1 . . . . . . . . Shots Hit Robots 538 | 19 5 . 21 35 . 7 42 80 69 29 1 89 59 61 19 2 Core Hits 259 | 9 3 . 11 23 . 3 14 35 27 21 . 43 28 28 12 2 Critical Hits 11 | . . . . . . . 1 1 2 . . 5 . 2 . . Critical Kills 2 | . . . . . . . . . . . . 2 . . . . Critical Parts Destroyed 9 | . . . . . . . 1 1 2 . . 3 . 2 . . Melee Attacks 294 | . . . . . . . . 6 9 12 2 111 49 82 17 6 Impact 72 | . . . . . . . . 6 . . . 14 37 . 9 6 Slashing 205 | . . . . . . . . . . 4 2 97 12 82 8 . Piercing . | . . . . . . . . . . . . . . . . . Sneak Attacks 11 | . . . . . . . . . . 1 . 9 . 1 . . Combat Hostiles . | . . . . . . . . . . . . . . . . . Follow-up Attacks 61 | . . . . . . . . . . 1 . 19 11 24 6 . Damage Inflicted 13528 | 224 50 . 408 543 . 38 530 1274 1179 571 35 3683 1866 2455 654 18 Guns 4064 | 224 50 . 224 343 . 38 480 1274 698 262 . . 341 . 112 18 Cannons 1122 | . . . . . . . 50 . 464 240 . . 150 . 218 . Explosions 388 | . . . 171 200 . . . . 17 . . . . . . . Melee 7941 | . . . . . . . . . . 69 35 3683 1375 2455 324 . Ramming 13 | . . . 13 . . . . . . . . . . . . . Kinetic 1874 | . . . . 232 . 24 60 581 419 262 . . 156 . 140 . Thermal 3027 | 224 50 . 224 111 . 14 470 693 627 240 . . 166 . 190 18 Explosive 371 | . . . 171 200 . . . . . . . . . . . . Electromagnetic 302 | . . . . . . . . . 133 . . . 169 . . . Impact 1567 | . . . . . . . . . . . . 406 989 . 172 . Slashing 6374 | . . . . . . . . . . 69 35 3277 386 2455 152 . Piercing . | . . . . . . . . . . . . . . . . . Highest Corruption 44 | . 1 1 2 2 2 2 . . 2 2 2 5 18 26 44 6 Average Corruption 9 | . 1 1 2 2 2 2 . . 1 2 2 2 11 24 40 2 Corruption Purged . | . . . . . . . . . . . . . . . . . Effects 215 | . 2 1 . 8 1 2 . . 6 11 2 8 23 92 51 8 Message Errors 49 | . . . . 5 . 1 . . . 2 1 2 4 22 8 4 Matter Fused 22 | . . . . . . . . . . . . 1 2 13 5 1 Heat Flow Errors 22 | . . . . 3 . . . . 1 4 . 2 1 6 4 1 Energy Discharges 18 | . . . . . 1 . . . 2 3 1 . . 6 4 1 Parts Rejected 3 | . . . . . . . . . . . . . 2 1 . . Data Loss (minor) 22 | . 2 1 . . . . . . . 2 . 3 3 7 3 1 Data Loss (major) 3 | . . . . . . . . . . . . . . 3 . . Misfires 1 | . . . . . . . . . . . . . 1 . . . Alerts 2 | . . . . . . . . . . . . . . 1 1 . Misdirections 27 | . . . . . . . . . . . . . 2 16 9 . Targeting Errors 39 | . . . . . . . . . 3 . . . 5 17 14 . Weapon Failures 7 | . . . . . . 1 . . . . . . 3 . 3 . Overload Shots . | . . . . . . . . . . . . . . . . . Overflow Damage 552 | . . . 3 5 . . . . 4 . 10 217 52 261 . . Projectiles 4 | . . . . . . . . . 4 . . . . . . . Explosions 8 | . . . 3 5 . . . . . . . . . . . . Melee 540 | . . . . . . . . . . . 10 217 52 261 . . Knockbacks 4 | . . . . . . . . . . . . 2 2 . . . Impact 4 | . . . . . . . . . . . . 2 2 . . . Kinetic . | . . . . . . . . . . . . . . . . . Secondary . | . . . . . . . . . . . . . . . . . Self-Inflicted Damage 96 | . . . 30 39 . . . . 27 . . . . . . . Shots 5 | . . . 3 1 . . . . 1 . . . . . . . Rammed 1 | . . . 1 . . . . . . . . . . . . . Targets Rammed 1 | . . . 1 . . . . . . . . . . . . . Kicked . | . . . . . . . . . . . . . . . . . Crushed . | . . . . . . . . . . . . . . . . . Highest Temperature 414 | 348 293 . 327 335 . 67 286 388 335 236 . 254 414 193 214 101 Average Temperature 111 | 132 156 . 148 92 . 31 106 102 122 58 . 158 217 81 63 54 Received Heat Transfer 2580 | . . . 192 . . . 189 354 213 189 36 576 264 450 63 54 Effects 9 | 1 1 . 4 . . . . . . . . . 3 . . . Shutdowns 1 | 1 . . . . . . . . . . . . . . . . Energy Bleed 2 | . . . 1 . . . . . . . . . 1 . . . Interference 4 | . 1 . 3 . . . . . . . . . . . . . Short Circuit 2 | . . . . . . . . . . . . . 2 . . . Siege Activations . | . . . . . . . . . . . . . . . . . Robots Corrupted . | . . . . . . . . . . . . . . . . . Combat Hostiles . | . . . . . . . . . . . . . . . . . Parts Fried 1 | . . . . . . . . . . . . 1 . . . . Impact Corruptions 6 | . . . . . . . . . . . . 2 4 . . . Robots Melted . | . . . . . . . . . . . . . . . . . Combat Hostiles . | . . . . . . . . . . . . . . . . . Parts Melted 10 | 2 . . 2 1 . . . 4 . 1 . . . . . . Heat Transferred 5856 | 666 148 . 666 296 . 37 1036 1296 1038 333 . . 200 . 125 15 Parts Sabotaged . | . . . . . . . . . . . . . . . . . Parts Stolen . | . . . . . . . . . . . . . . . . . Parts Stripped . | . . . . . . . . . . . . . . . . . Power Chain Reactions 1 | . . . . . . . . . . . . . . . . 1 Missiles Intercepted . | . . . . . . . . . . . . . . . . . Alert | -11 -10 -10 -9 -9 -9 -8 -8 -8 -7 -7 -7 -6 -5 -5 -5 -4 ------- Run | Scr Mat Min Mat Min Exi Min Mat Gar Fac Low Low Fac Fac Upp Upp Fac Peak Influence 898 | 40 111 43 87 128 . 115 299 898 561 . . 256 231 . . 655 Initial 471 | . 26 43 16 33 . . 44 194 471 . . . 112 . . . Average 261 | 14 51 43 41 59 . 36 140 578 458 . . 114 118 . . 119 Maximum Alert Level 3 | . . . . . . . 1 3 2 . . 1 1 . . 2 Low Security (%) 55 | 100 100 100 100 100 . 100 66 6 . . . 79 83 . . 76 Level 1 13 | . . . . . . . 33 11 30 . . 20 16 . . 8 Level 2 22 | . . . . . . . . 48 69 . . . . . . 15 Level 3 8 | . . . . . . . . 33 . . . . . . . . Level 4 . | . . . . . . . . . . . . . . . . . Level 5 . | . . . . . . . . . . . . . . . . . High Security . | . . . . . . . . . . . . . . . . . Max Security . | . . . . . . . . . . . . . . . . . Squads Dispatched 45 | . 3 . 2 . . . 4 . 7 . . 15 6 . . 8 Investigation 17 | . 2 . 1 . . . 1 . 3 . . 4 1 . . 5 Extermination 8 | . . . . . . . . . 1 . . 5 1 . . 1 Reinforcement 9 | . 1 . 1 . . . . . 2 . . 3 . . . 2 Assault . | . . . . . . . . . . . . . . . . . Garrison 11 | . . . . . . . 3 . 1 . . 3 4 . . . Intercept . | . . . . . . . . . . . . . . . . . Construction Impeded 1 | . . . . . . . . . . . . 1 . . . . Haulers Reinforced . | . . . . . . . . . . . . . . . . . Stealth | -11 -10 -10 -9 -9 -9 -8 -8 -8 -7 -7 -7 -6 -5 -5 -5 -4 --------- Run | Scr Mat Min Mat Min Exi Min Mat Gar Fac Low Low Fac Fac Upp Upp Fac Distress Signals 4 | . . . . . . . 2 . . . . . 1 . . 1 Communications Jammed . | . . . . . . . . . . . . . . . . . Distress Signals . | . . . . . . . . . . . . . . . . . Times Spotted 227 | . 6 . 5 8 . 7 16 28 18 14 5 30 12 21 8 49 Peak Tracking Total 17 | . 3 . 4 4 . 4 9 5 2 4 5 5 5 4 4 17 Tactical Retreats 37 | . . . 1 1 . 1 2 3 . 5 . 6 1 8 . 9 Traps | -11 -10 -10 -9 -9 -9 -8 -8 -8 -7 -7 -7 -6 -5 -5 -5 -4 ------- Run | Scr Mat Min Mat Min Exi Min Mat Gar Fac Low Low Fac Fac Upp Upp Fac Traps Triggered 11 | . . . 1 . . . . 6 1 . . 1 . . . 2 Indirectly . | . . . . . . . . . . . . . . . . . Trap Hack Attempts . | . . . . . . . . . . . . . . . . . Triggered . | . . . . . . . . . . . . . . . . . Disarmed . | . . . . . . . . . . . . . . . . . Reprogrammed . | . . . . . . . . . . . . . . . . . Reused . | . . . . . . . . . . . . . . . . . Traps Extracted . | . . . . . . . . . . . . . . . . . Installed 2 | . . . . 2 . . . . . . . . . . . . Triggered 1 | . . . . . . . . . . . 1 . . . . . Machines | -11 -10 -10 -9 -9 -9 -8 -8 -8 -7 -7 -7 -6 -5 -5 -5 -4 ---------- Run | Scr Mat Min Mat Min Exi Min Mat Gar Fac Low Low Fac Fac Upp Upp Fac Machines Disabled 5 | . . . . . . 1 . 3 1 . . . . . . . Max in Single Turn 1 | . . . . . . . . 1 1 . . . . . . . Garrison Relay 3 | . . . . . . . . 3 . . . . . . . . Machines Sabotaged . | . . . . . . . . . . . . . . . . . Garrisons Compromised . | . . . . . . . . . . . . . . . . . Overloaded Fab Kills 1 | . . . . . . . . . . . . . . . . 1 Fab Network Shutdowns 1 | . . . . . . . . . . . . . . . . 1 Hacking | -11 -10 -10 -9 -9 -9 -8 -8 -8 -7 -7 -7 -6 -5 -5 -5 -4 --------- Run | Scr Mat Min Mat Min Exi Min Mat Gar Fac Low Low Fac Fac Upp Upp Fac Machines Accessed 37 | . 5 . 3 1 1 . 2 . 4 2 . 9 2 . . 8 Terminals 22 | . 5 . 3 1 . . . . 3 . . 6 1 . . 3 Fabricators 4 | . . . . . . . . . . . . 1 . . . 3 Repair Stations 1 | . . . . . . . . . . . . . 1 . . . Recycling Units 1 | . . . . . . . . . . . . . . . . 1 Scanalyzers 2 | . . . . . . . 1 . . . . 1 . . . . Garrison Access 4 | . . . . . . . 1 . 1 . . 1 . . . 1 Total Hacks 95 | . 24 . 5 2 1 . 5 . 10 5 . 19 5 . . 19 Successful 58 | . 11 . 4 1 1 . 3 . 4 5 . 11 3 . . 15 Failed 37 | . 13 . 1 1 . . 2 . 6 . . 8 2 . . 4 Catastrophic 5 | . . . . 1 . . . . . . . 2 . . . 2 Database Lockouts . | . . . . . . . . . . . . . . . . . Manual 79 | . 25 . 5 2 1 . 3 . 10 . . 15 5 . . 13 Terminals 65 | . 24 . 5 2 . . . . 7 . . 13 3 . . 11 Fabricators 8 | . . . . . . . . . . . . 3 . . . 5 Repair Stations 2 | . . . . . . . . . . . . . 2 . . . Recycling Units 2 | . . . . . . . . . . . . . . . . 2 Scanalyzers 2 | . . . . . . . 1 . . . . 1 . . . . Garrison Access 10 | . . . . . . . 4 . 3 . . 2 . . . 1 Terminal Hacks 18 | . 4 . . 1 1 . . . . 5 . 2 1 . . 4 Record 4 | . . . . . . . . . . 4 . . . . . . Part Schematic 2 | . 1 . . . . . . . . . . 1 . . . . Robot Schematic 1 | . . . . . . . . . . . . . . . . 1 Open Door 1 | . . . . . . . . . . 1 . . . . . . Level Access Points 2 | . . . . . . . . . . . . 1 . . . 1 Branch Access Points 1 | . 1 . . . . . . . . . . . . . . . Terminal Index 2 | . 1 . . . . . . . . . . . 1 . . . Unreport Threat 3 | . 1 . . 1 . . . . . . . . . . . 1 Recall Reinforcements 1 | . . . . . . . . . . . . . . . . 1 EX-Prototype ID Bank 1 | . . . . . 1 . . . . . . . . . . . Fabricator Hacks 5 | . . . . . . . . . . . . 2 . . . 3 Load Schematic 2 | . . . . . . . . . . . . 1 . . . 1 Build 3 | . . . . . . . . . . . . 1 . . . 2 Repair Station Hacks . | . . . . . . . . . . . . . . . . . Recycling Unit Hacks 2 | . . . . . . . . . . . . . . . . 2 Report Inventory 1 | . . . . . . . . . . . . . . . . 1 Retrieve Components 1 | . . . . . . . . . . . . . . . . 1 Scanalyzer . | . . . . . . . . . . . . . . . . . Garrison Access Hacks 2 | . . . . . . . 1 . . . . 1 . . . . Unlock Access 1 | . . . . . . . 1 . . . . . . . . . Coupler Status 1 | . . . . . . . . . . . . 1 . . . . Unauthorized Hacks 31 | . 7 . 4 . . . 2 . 4 . . 6 2 . . 6 Terminals 23 | . 7 . 4 . . . . . 4 . . 4 1 . . 3 Track 4 | . 1 . 1 . . . . . 1 . . 1 . . . . Assimilate 2 | . 1 . . . . . . . 1 . . . . . . . Botnet 17 | . 5 . 3 . . . . . 2 . . 3 1 . . 3 Fabricators 2 | . . . . . . . . . . . . . . . . 2 Overload 1 | . . . . . . . . . . . . . . . . 1 Download 1 | . . . . . . . . . . . . . . . . 1 Repair Stations 1 | . . . . . . . . . . . . . 1 . . . Mechanics 1 | . . . . . . . . . . . . . 1 . . . Recycling Units . | . . . . . . . . . . . . . . . . . Scanalyzers 2 | . . . . . . . 1 . . . . 1 . . . . Extract 2 | . . . . . . . 1 . . . . 1 . . . . Garrison Access 3 | . . . . . . . 1 . . . . 1 . . . 1 Reprogram 3 | . . . . . . . 1 . . . . 1 . . . 1 Data Cores Recovered 1 | . . . . . . . . . 1 . . . . . . . Used . | . . . . . . . . . . . . . . . . . Hacking Detections 27 | . 5 . 3 1 . . . . 4 . . 8 2 . . 4 Full Trace Events 12 | . 3 . . . . . . . 3 . . 2 1 . . 3 Feedback Events 7 | . 1 . . . . . . . . . . . 4 . . 2 Corruption 3 | . 1 . . . . . . . . . . . 1 . . 1 Hackware Fried 4 | . . . . . . . . . . . . . 3 . . 1 Feedback Blocked . | . . . . . . . . . . . . . . . . . Robot Schematics Acquired 1 | . . . . . . . . . . . . . . . . 1 Robots Built . | . . . . . . . . . . . . . . . . . Matter . | . . . . . . . . . . . . . . . . . Time . | . . . . . . . . . . . . . . . . . Total Robot Build Rating . | . . . . . . . . . . . . . . . . . Part Schematics Acquired 6 | . 1 . . . . . 1 . . . . 3 . . . 1 Parts Built 3 | . . . . . . . . . . . . 1 . . . 2 Matter 570 | . . . . . . . . . . . . 190 . . . 380 Time 237 | . . . . . . . . . . . . 47 . . . 190 Total Part Build Rating 15 | . . . . . . . . . . . . 5 . . . 10 Parts Repaired . | . . . . . . . . . . . . . . . . . Time . | . . . . . . . . . . . . . . . . . Parts Recycled . | . . . . . . . . . . . . . . . . . Recycled Matter . | . . . . . . . . . . . . . . . . . Retrieved Matter . | . . . . . . . . . . . . . . . . . Retrieved Components 1 | . . . . . . . . . . . . . . . . 1 Parts Scanalyzed . | . . . . . . . . . . . . . . . . . Part Schematics Acquired . | . . . . . . . . . . . . . . . . . Parts Damaged . | . . . . . . . . . . . . . . . . . Bothacking | -11 -10 -10 -9 -9 -9 -8 -8 -8 -7 -7 -7 -6 -5 -5 -5 -4 ------------ Run | Scr Mat Min Mat Min Exi Min Mat Gar Fac Low Low Fac Fac Upp Upp Fac Used RIF Installer 1 | . . . . . . . . 1 . . . . . . . . Robots Hacked 7 | . . . . . . . . . 3 4 . . . . . . Non-combat 1 | . . . . . . . . . . 1 . . . . . . Combat 6 | . . . . . . . . . 3 3 . . . . . . Robot Hacks Applied 7 | . . . . . . . . . 3 4 . . . . . . parse_system 2 | . . . . . . . . . 1 1 . . . . . . overwrite_iff 1 | . . . . . . . . . 1 . . . . . . . streamctrl_high 1 | . . . . . . . . . . 1 . . . . . . formatsys_high 3 | . . . . . . . . . 1 2 . . . . . . Relay Couplers Released 12 | . . . . . . . . 12 . . . . . . . . Machine Destruction 12 | . . . . . . . . 12 . . . . . . . . Attached 2 | . . . . . . . . 1 1 . . . . . . . Robots Rewired . | . . . . . . . . . . . . . . . . . Allies Hacked . | . . . . . . . . . . . . . . . . . Hacks Repelled . | . . . . . . . . . . . . . . . . . Allies | -11 -10 -10 -9 -9 -9 -8 -8 -8 -7 -7 -7 -6 -5 -5 -5 -4 -------- Run | Scr Mat Min Mat Min Exi Min Mat Gar Fac Low Low Fac Fac Upp Upp Fac Total Allies 19 | . . . . . . 1 5 . 2 5 . 1 . . 1 4 Largest Group 4 | . . . . . . 1 4 4 1 3 . 1 . . 1 4 Highest-Rated Group 188 | . . . . . . 21 57 57 16 56 . 38 . . 163 188 Highest-Rated Ally 163 | . . . . . . 21 21 16 16 31 . 38 . . 163 47 Total Orders . | . . . . . . . . . . . . . . . . . Ally Attacks 97 | . . . . . . 6 23 14 6 20 . 3 . . . 25 Total Damage 1788 | . . . . . . 219 249 167 62 250 . 119 . . . 722 Kills 17 | . . . . . . 4 4 2 2 1 . 1 . . . 3 Allies Corrupted 1 | . . . . . . . . . . . . . . . . 1 Allies Melted . | . . . . . . . . . . . . . . . . . Field Lobotomies 5 | . . . . . . 1 4 . . . . . . . . . Intel | -11 -10 -10 -9 -9 -9 -8 -8 -8 -7 -7 -7 -6 -5 -5 -5 -4 ------- Run | Scr Mat Min Mat Min Exi Min Mat Gar Fac Low Low Fac Fac Upp Upp Fac Robot Analysis Total . | . . . . . . . . . . . . . . . . . Derelict Logs Recovered 8 | . . 2 . 3 . . . . . 1 1 . . 1 . . Drone Launches . | . . . . . . . . . . . . . . . . . Drone Recoveries . | . . . . . . . . . . . . . . . . . Exploration | -11 -10 -10 -9 -9 -9 -8 -8 -8 -7 -7 -7 -6 -5 -5 -5 -4 ------------- Run | Scr Mat Min Mat Min Exi Min Mat Gar Fac Low Low Fac Fac Upp Upp Fac Turns Passed 11384 | 143 357 127 151 711 211 273 309 2035 1012 1149 111 1412 621 1351 466 945 Spaces Moved 7297 | 81 106 140 80 565 226 238 142 1182 515 603 87 825 311 765 230 1201 Core 132 | 3 . . . . . . . . . . 15 35 2 . . 77 Treads 1987 | . . . . . . . . 754 509 456 . . 8 . 169 91 Legs 1570 | . . . . . . . . 15 6 145 72 570 165 596 1 . Wheels 2219 | 78 106 140 80 565 226 238 142 413 . . . 220 . . . 11 Hover 365 | . . . . . . . . . . . . . 136 169 60 . Flight 1024 | . . . . . . . . . . 2 . . . . . 1022 Fastest Speed 28 | 50 90 90 86 93 93 93 90 85 160 123 50 50 76 76 126 28 Average Speed 114 | 88 90 90 103 97 93 95 91 137 161 170 113 111 110 142 166 42 Slowest Speed 790 | 100 90 90 120 120 93 110 92 240 190 790 210 150 200 210 270 180 Overloaded Moves . | . . . . . . . . . . . . . . . . . Propulsion Burnouts . | . . . . . . . . . . . . . . . . . Robots Hopped 18 | . . . . . . . . . . . . . . . . 18 Cave-ins Triggered . | . . . . . . . . . . . . . . . . . Exploration Rate (%) 38 | 5 22 54 13 85 62 45 9 87 14 72 11 21 5 86 35 31 Regions Visited 16 Branch Regions 8 Pre-discovered Areas 1 | . . 1 . . . . . . . . . . . . . . Known Exits Taken 7 | . 1 . 1 1 1 1 1 . . . . 1 . . . . Unknown Exits Taken 8 | 1 . 1 . . . . . . 1 1 1 . 1 1 1 . Scrap Searched 10 | . . 2 . 2 . 1 . . . 1 . . . 4 . . Spaces Dug 11 | . . . . . . . . . . . . 2 3 . . 6 Terrain Destroyed 61 | . . . 16 15 . . . 1 2 4 . 2 3 . 11 7 Melee 11 | . . . . . . . . . . . . 2 3 . . 6 Projectile 19 | . . . . . . . . 1 2 4 . . . . 11 1 AOE 31 | . . . 16 15 . . . . . . . . . . . . Terrain Rammed . | . . . . . . . . . . . . . . . . . Walls Destroyed . | . . . . . . . . . . . . . . . . . Machines Disabled . | . . . . . . . . . . . . . . . . . Actions | -11 -10 -10 -9 -9 -9 -8 -8 -8 -7 -7 -7 -6 -5 -5 -5 -4 --------- Run | Scr Mat Min Mat Min Exi Min Mat Gar Fac Low Low Fac Fac Upp Upp Fac Total 9524 | 117 353 141 116 661 226 265 262 1467 622 686 101 1181 503 937 267 1619 Wait 1112 | 4 239 . 6 6 . 1 57 108 31 27 . 179 86 77 . 291 Move 7248 | 80 105 139 79 564 225 237 141 1180 514 602 86 824 310 764 229 1169 Hop 13 | . . . . . . . . . . . . . . . . 13 Pick Up 171 | 8 2 . 2 10 1 8 10 30 6 7 . 31 14 14 3 25 Fast Attach 104 | 7 . . . 7 . . 5 9 6 3 . 16 10 10 8 23 Attach 99 | . . . 8 1 . 4 5 12 3 7 1 13 22 9 5 9 Detach 26 | . . . . 1 . 1 . . . 3 2 1 2 1 2 13 Swap 61 | . . 1 1 1 . 2 3 7 8 6 . 11 3 5 3 10 Drop 147 | 2 . 1 . 7 . 2 8 21 14 6 10 20 6 5 . 45 Fire 280 | 16 7 . 19 62 . 10 33 63 31 14 . 2 13 . 8 2 Melee 216 | . . . . . . . . 6 9 11 2 84 37 52 9 6 Ram 1 | . . . 1 . . . . . . . . . . . . . Kick . | . . . . . . . . . . . . . . . . . Crush . | . . . . . . . . . . . . . . . . . Escape Stasis 44 | . . . . . . . . 31 . . . . . . . 13 Rewire . | . . . . . . . . . . . . . . . . . Trap 2 | . . . . 2 . . . . . . . . . . . . Miscellaneous . | . . . . . . . . . . . . . . . . . Route ------- -11/Scrapyard -10/Materials (discovered 2 exits: *Min x2) -10/Mines -9/Materials -9/Mines (discovered 3 exits: *Mat x2 / *Exi) -9/Exiles -8/Mines -8/Materials (discovered 3 exits: Fac x2 / Gar) -8/Garrison (discovered 3 exits: *Fac x3) -7/Factory -7/Lower Caves -7/Lower Caves -6/Factory (discovered 6 exits: *Fac x4 / *Low x2) -5/Factory -5/Upper Caves -5/Upper Caves -4/Factory (discovered 6 exits: Res x4 / [*Upp] / [*Ext]) History --------- Turn | Location | Event 33 | -11/Scrapyard | Discovered new exit (range 14) 144 | -11/Scrapyard | Entered Materials 199 | -10/Materials | Identified exit to Mines 310 | -10/Materials | Build established: Mutant 501 | -10/Materials | Entered Mines 507 | -10/Mines | Learned Materials stockpile data 553 | -10/Mines | Learned location of Zion (-6) 625 | -10/Mines | Discovered new exit (range 5) 628 | -10/Mines | Entered Materials 628 | -9/Materials | Evolved 2 slots: Propulsion x1, Utility x1 752 | -9/Materials | Discovered new exit (range 9) 758 | -9/Materials | Lost 7 parts (1p4n2w) 762 | -9/Materials | Identified exit to Mines 779 | -9/Materials | Entered Mines 837 | -9/Mines | Lost 3 parts (1n2w) 904 | -9/Mines | Assembled infested the area 1055 | -9/Mines | Learned Materials stockpile data 1131 | -9/Mines | Learned 2 Materials zone layouts 1140 | -9/Mines | Discovered new exit (range 6) 1145 | -9/Mines | Learned location of 1 exit from Proximity Caves 1190 | -9/Mines | Identified exit to Materials 1284 | -9/Mines | Build established: Scavenger-Mutant 1293 | -9/Mines | Found a hidden stash of uninstalled traps 1342 | -9/Mines | Discovered exit to Materials (range 5) 1486 | -9/Mines | Discovered new exit (range 5) 1489 | -9/Mines | Identified exit to Exiles 1490 | -9/Mines | Entered Exiles 1516 | -9/Exiles | Met 8R-AWN 1530 | -9/Exiles | Met EX-HEX 1561 | -9/Exiles | Met EX-BIN 1572 | -9/Exiles | Aligned with FarCom system 1573 | -9/Exiles | Given EX-Vault access code 1598 | -9/Exiles | Opened EX-Vault 1605 | -9/Exiles | Found Field Lobotomy Kit 1627 | -9/Exiles | Warned to stay clear of 0b10 Research branches 1652 | -9/Exiles | Met EX-DEC 1690 | -9/Exiles | Discovered new exit (range 12) 1700 | -9/Exiles | Identified exit to Mines 1701 | -9/Exiles | Left Exiles lab with Field Lobotomy Kit 1701 | -9/Exiles | Entered Mines 1779 | -8/Mines | Assimilated H-55 Commando with FLK Orb 1960 | -8/Mines | Discovered exit to Materials (range 7) 1974 | -8/Mines | Entered Materials 1974 | -8/Materials | Accompanied by 1 ally 1974 | -8/Materials | Evolved 2 slots: Propulsion x1, Utility x1 1975 | -8/Materials | Identified exit to Factory 2041 | -8/Materials | Garrison activated, responded to threat 2118 | -8/Materials | Assimilated Y-45 Defender with FLK Orb 2121 | -8/Materials | Assimilated G-47 Trooper with FLK Orb 2125 | -8/Materials | Assimilated B-36 Bruiser with FLK Orb 2128 | -8/Materials | Assimilated G-47 Trooper with FLK Orb 2148 | -8/Materials | Lost 3 parts (3w) 2173 | -8/Materials | Garrison activated, responded to threat 2204 | -8/Materials | Identified exit to Garrison 2283 | -8/Materials | Entered Garrison 2283 | -8/Garrison | Accompanied by 4 allies 2376 | -8/Garrison | Triggered checkpoint 2478 | -8/Garrison | Triggered checkpoint 2610 | -8/Garrison | Triggered checkpoint 2726 | -8/Garrison | Discovered exit to Factory (range 9) 2850 | -8/Garrison | Core integrity fell below 50% 2953 | -8/Garrison | Lost 11 parts (1p4n1u5w) 3376 | -8/Garrison | Discovered exit to Factory (range 11) 3430 | -8/Garrison | Triggered checkpoint 3520 | -8/Garrison | Triggered checkpoint 3584 | -8/Garrison | Discovered exit to Factory (range 9) 3624 | -8/Garrison | Triggered checkpoint 3634 | -8/Garrison | Garrison Relay disabled 3751 | -8/Garrison | Installed Relay Interface Framework 3909 | -8/Garrison | Garrison Relay disabled 3996 | -8/Garrison | Triggered checkpoint 4137 | -8/Garrison | Garrison Relay disabled 4318 | -8/Garrison | Entered Factory 4318 | -7/Factory | Evolved 2 slots: Weapon x2 4671 | -7/Factory | Build established: Scavenger-Skirmisher 4872 | -7/Factory | Garrison activated, responded to threat 5244 | -7/Factory | Discovered new exit (range 6) 5281 | -7/Factory | Lost 4 parts (2n2w) 5298 | -7/Factory | Build established: Bothacker-Skirmisher 5330 | -7/Factory | Entered Lower Caves 5624 | -7/Lower Caves | Build established: Bothacker-Gunner 5704 | -7/Lower Caves | Lost 3 parts (2n1w) 5891 | -7/Lower Caves | A Commander dispatched an escort 5922 | -7/Lower Caves | Learned location of 1 exit from Factory 5922 | -7/Lower Caves | Learned Factory emergency access door positions 5922 | -7/Lower Caves | Learned Extension garrison access intel 5994 | -7/Lower Caves | Build established: Hacker-Mutant 6177 | -7/Lower Caves | Attracted the attention of an 0b10 checkpoint 6211 | -7/Lower Caves | Learned Factory machine intel 6367 | -7/Lower Caves | Build established: Scavenger-Mutant 6456 | -7/Lower Caves | Discovered new exit (range 5) 6479 | -7/Lower Caves | Entered another Lower Caves area 6487 | -7/Lower Caves | Spotted B-75 Beast 6583 | -7/Lower Caves | Core integrity fell below 50% 6586 | -7/Lower Caves | Discovered new exit (range 9) 6586 | -7/Lower Caves | Learned 12 Factory zone layouts 6590 | -7/Lower Caves | Entered Factory 6590 | -6/Factory | Evolved 2 slots: Utility x2 6591 | -6/Factory | Identified exit to Lower Caves 6592 | -6/Factory | Identified exit to Factory 6594 | -6/Factory | Loaded intel: 238 machine locations 6609 | -6/Factory | Lost 7 parts (1p4n1u1w) 6899 | -6/Factory | Discovered exit to Lower Caves (range 15) 6921 | -6/Factory | Build established: Hacker-Mutant 7245 | -6/Factory | Garrison activated, responded to threat 7363 | -6/Factory | Lost 8 parts (1p3n3u1w) 7525 | -6/Factory | Fabricated Imp. Hacking Suite (x1) 7577 | -6/Factory | Build established: Scavenger-Mutant 7978 | -6/Factory | Lost 4 parts (1p1n2u) 8002 | -6/Factory | Entered another Factory area 8002 | -5/Factory | Evolved 2 slots: Power x1, Utility x1 8186 | -5/Factory | Garrison activated, responded to threat 8221 | -5/Factory | Lost 4 parts (4n) 8373 | -5/Factory | System corruption reached 10% 8462 | -5/Factory | Core integrity fell below 50% 8486 | -5/Factory | Garrison activated, responded to threat 8496 | -5/Factory | Lost 18 parts (2p7n3u6w) 8542 | -5/Factory | Imp. Hacking Suite fried by hacking feedback 8542 | -5/Factory | Imp. Hacking Suite fried by hacking feedback 8542 | -5/Factory | Imp. Hacking Suite fried by hacking feedback 8573 | -5/Factory | Lost 3 parts (3u) 8611 | -5/Factory | Discovered new exit (range 15) 8623 | -5/Factory | Entered Upper Caves 8624 | -5/Upper Caves | Encountered a Warlord checkpoint 8923 | -5/Upper Caves | Lost 6 parts (4n2u) 9054 | -5/Upper Caves | Attracted the attention of an 0b10 checkpoint 9425 | -5/Upper Caves | Lost 3 parts (1p2n) 9665 | -5/Upper Caves | Learned Factory emergency access door positions 9786 | -5/Upper Caves | Lost 4 parts (3n1w) 9920 | -5/Upper Caves | Spotted B-75 Beast 9946 | -5/Upper Caves | Discovered new exit (range 7) 9974 | -5/Upper Caves | Entered another Upper Caves area 10050 | -5/Upper Caves | Ambushed by wild Derelicts 10069 | -5/Upper Caves | System corruption reached 30% 10112 | -5/Upper Caves | Lost 6 parts (3n1u2w) 10388 | -5/Upper Caves | Build established: Scavenger-Tank 10432 | -5/Upper Caves | P1-3CE showed up to help 10434 | -5/Upper Caves | P1-3CE revealed a hidden path 10440 | -5/Upper Caves | Entered Factory 10440 | -4/Factory | Evolved 2 slots: Propulsion x1, Utility x1 10801 | -4/Factory | Discovered new exit (range 15) 10900 | -4/Factory | Build established: Scavenger-Sprinter 10939 | -4/Factory | Fabricated Imp. Hacking Suite (x1) 11036 | -4/Factory | Fabricated Imp. Hacking Suite (x1) 11138 | -4/Factory | Imp. Hacking Suite fried by hacking feedback 11229 | -4/Factory | Discovered new exit (range 14) 11230 | -4/Factory | Identified exit to Research 11243 | -4/Factory | Local fabrication network quarantined 11298 | -4/Factory | Core integrity fell below 50% 11323 | -4/Factory | Lost 16 parts (3p7n4u2w) 11334 | -4/Factory | Core integrity fell below 20% 11379 | -4/Factory | Lost 6 parts (3n3u) 11385 | -4/Factory | Destroyed by S-27 Virus with Autogun Last Messages --------------- 11336_ Dropped KE Penetrator. 11336_ Dropped Adv. Heat Sink. 11337_ Acquired Impulse Thruster. 11340_ Impulse Thruster destroyed. 11340_ S-27 Virus destroyed. 11341_ Imp. Hacking Suite destroyed. 11341_ Impulse Thruster destroyed. 11346_ KCW